[Event "Early-Titled-Tuesday-Blitz-April-23-2024"]
[Site "Chess.com"]
[Date "2024.04.23"]
[Round "5"]
[White "ChessSwole"]
[Black "Zarinur"]
[Result "1-0"]
[WhiteElo "2711"]
[BlackElo "2508"]
[TimeControl "180+1"]
[EndTime "8:57:49 PDT"]
[Termination "ChessSwole won by resignation"]

1. e4 {[%clk 0:03:00.9]} 1... e5 {[%clk 0:02:58.1]} 2. Nf3 {[%clk 0:03:00.1]}
2... Nc6 {[%clk 0:02:53.8]} 3. Bb5 {[%clk 0:03:00.3]} 3... a6 {[%clk 0:02:50.3]}
4. Ba4 {[%clk 0:03:00.7]} 4... Nf6 {[%clk 0:02:50.7]} 5. O-O {[%clk 0:03:01.1]}
5... Be7 {[%clk 0:02:51.1]} 6. d3 {[%clk 0:03:01.2]} 6... b5 {[%clk 0:02:49.3]}
7. Bb3 {[%clk 0:03:01.1]} 7... d6 {[%clk 0:02:49.9]} 8. a3 {[%clk 0:02:59.4]}
8... O-O {[%clk 0:02:49.7]} 9. Nc3 {[%clk 0:02:57.7]} 9... Be6 {[%clk
0:02:49.8]} 10. Nd5 {[%clk 0:02:56.5]} 10... Re8 {[%clk 0:02:44.3]} 11. h3
{[%clk 0:02:54.3]} 11... h6 {[%clk 0:02:35.9]} 12. Be3 {[%clk 0:02:53.2]} 12...
Na5 {[%clk 0:02:35.1]} 13. Ba2 {[%clk 0:02:52.3]} 13... Bf8 {[%clk 0:02:33.4]}
14. b4 {[%clk 0:02:50.1]} 14... Nc6 {[%clk 0:02:29.1]} 15. c4 {[%clk 0:02:45.1]}
15... Bxd5 {[%clk 0:02:08.8]} 16. cxd5 {[%clk 0:02:41.1]} 16... Ne7 {[%clk
0:02:07.1]} 17. Rc1 {[%clk 0:02:39.5]} 17... Ng6 {[%clk 0:02:04.8]} 18. Qc2
{[%clk 0:02:35.5]} 18... Nh5 {[%clk 0:01:35.9]} 19. Qxc7 {[%clk 0:02:28.6]}
19... Qf6 {[%clk 0:01:36]} 20. Qd7 {[%clk 0:02:25.5]} 20... Nhf4 {[%clk
0:01:32.5]} 21. Rcd1 {[%clk 0:02:09.5]} 21... Ne2+ {[%clk 0:01:27.2]} 22. Kh2
{[%clk 0:02:02]} 22... Ngf4 {[%clk 0:01:22]} 23. Rd2 {[%clk 0:01:38.9]} 23...
Rec8 {[%clk 0:00:57.9]} 24. Re1 {[%clk 0:01:30.8]} 24... Nc1 {[%clk 0:00:50.8]}
25. d4 {[%clk 0:01:25.9]} 25... Nxa2 {[%clk 0:00:30.2]} 26. Rxa2 {[%clk
0:01:26.8]} 26... Rc3 {[%clk 0:00:30.3]} 27. a4 {[%clk 0:01:18.2]} 27... Rd8
{[%clk 0:00:24.2]} 28. Qf5 {[%clk 0:01:16]} 28... Qxf5 {[%clk 0:00:21.5]} 29.
exf5 {[%clk 0:01:16.9]} 29... Nxd5 {[%clk 0:00:21.3]} 30. axb5 {[%clk
0:01:12.8]} 30... axb5 {[%clk 0:00:21]} 31. Ra5 {[%clk 0:01:12.8]} 31... Nxb4
{[%clk 0:00:18.1]} 32. Rxb5 {[%clk 0:01:11.6]} 32... Nc2 {[%clk 0:00:18.4]} 33.
Rc1 {[%clk 0:01:08.5]} 33... e4 {[%clk 0:00:13.7]} 34. Ne1 {[%clk 0:01:01.8]}
34... Rdc8 {[%clk 0:00:13.4]} 35. Nxc2 {[%clk 0:00:57.4]} 35... Rxc2 {[%clk
0:00:14.3]} 36. Rxc2 {[%clk 0:00:57.2]} 36... Rxc2 {[%clk 0:00:15.2]} 37. Rb8
{[%clk 0:00:56.4]} 37... d5 {[%clk 0:00:13.7]} 38. Bf4 {[%clk 0:00:55.7]} 38...
Rc6 {[%clk 0:00:13.6]} 39. Rd8 {[%clk 0:00:53.1]} 39... Ra6 {[%clk 0:00:04.8]}
40. Rxd5 {[%clk 0:00:51.2]} 40... Kh7 {[%clk 0:00:05.3]} 41. Rd7 {[%clk
0:00:49.7]} 41... Rf6 {[%clk 0:00:04.8]} 42. g4 {[%clk 0:00:50.3]} 42... Bb4
{[%clk 0:00:04.1]} 43. Be5 {[%clk 0:00:49.8]} 43... Ra6 {[%clk 0:00:03.8]} 44.
Rxf7 {[%clk 0:00:50]} 44... Kg8 {[%clk 0:00:02.9]} 45. Rxg7+ {[%clk 0:00:50.1]}
45... Kf8 {[%clk 0:00:03.5]} 46. f6 {[%clk 0:00:48.7]} 46... Ra2 {[%clk
0:00:04.1]} 47. Kg3 {[%clk 0:00:48.6]} 47... Be1 {[%clk 0:00:04.8]} 48. Kf4
{[%clk 0:00:47.7]} 48... Rxf2+ {[%clk 0:00:05.1]} 49. Kxe4 {[%clk 0:00:48.1]}
49... Re2+ {[%clk 0:00:05.6]} 50. Kf5 {[%clk 0:00:48.2]} 50... Rf2+ {[%clk
0:00:06]} 51. Ke6 {[%clk 0:00:48.6]} 51... Re2 {[%clk 0:00:03.9]} 52. Rh7 {[%clk
0:00:47.3]} 52... Kg8 {[%clk 0:00:03.6]} 53. f7+ {[%clk 0:00:44.9]} 53... Kxh7
{[%clk 0:00:04]} 54. f8=Q {[%clk 0:00:45.3]} 54... Rxe5+ {[%clk 0:00:03.8]} 55.
dxe5 {[%clk 0:00:45.7]} 1-0

[Event "Early-Titled-Tuesday-Blitz-April-23-2024"]
[Site "Chess.com"]
[Date "2024.04.23"]
[Round "5"]
[White "frederiksvane"]
[Black "vasblesk"]
[Result "1-0"]
[WhiteElo "3039"]
[BlackElo "2816"]
[TimeControl "180+1"]
[EndTime "8:57:50 PDT"]
[Termination "frederiksvane won by resignation"]

1. b3 {[%clk 0:03:00.9]} 1... e5 {[%clk 0:02:51.4]} 2. Bb2 {[%clk 0:03:00.9]}
2... Nc6 {[%clk 0:02:50.6]} 3. c4 {[%clk 0:03:01.5]} 3... Nf6 {[%clk 0:02:50.4]}
4. e3 {[%clk 0:03:01.7]} 4... Bd6 {[%clk 0:02:40.2]} 5. a3 {[%clk 0:02:52.6]}
5... a5 {[%clk 0:02:21.6]} 6. d3 {[%clk 0:02:25.8]} 6... O-O {[%clk 0:02:20.9]}
7. Nd2 {[%clk 0:02:26.1]} 7... Qe7 {[%clk 0:02:17.4]} 8. Ngf3 {[%clk 0:02:22.2]}
8... b6 {[%clk 0:02:10.6]} 9. g3 {[%clk 0:02:17.4]} 9... Bb7 {[%clk 0:02:09.8]}
10. Bg2 {[%clk 0:02:17.9]} 10... h6 {[%clk 0:02:05.3]} 11. O-O {[%clk
0:02:18.2]} 11... Rfe8 {[%clk 0:01:36]} 12. Qc2 {[%clk 0:02:18.2]} 12... Rad8
{[%clk 0:01:35.4]} 13. Nh4 {[%clk 0:02:18]} 13... Qf8 {[%clk 0:01:30.2]} 14. Nf5
{[%clk 0:02:17.5]} 14... g6 {[%clk 0:01:22.3]} 15. Nxd6 {[%clk 0:02:16.6]} 15...
Qxd6 {[%clk 0:01:23.2]} 16. Rae1 {[%clk 0:02:11.6]} 16... Ba8 {[%clk 0:01:21.5]}
17. f4 {[%clk 0:02:08.6]} 17... Nh7 {[%clk 0:01:02.2]} 18. Qc3 {[%clk
0:01:56.8]} 18... Qe7 {[%clk 0:00:48.3]} 19. d4 {[%clk 0:01:36.3]} 19... d6
{[%clk 0:00:39.8]} 20. Bd5 {[%clk 0:01:11.4]} 20... Rf8 {[%clk 0:00:19.2]} 21.
dxe5 {[%clk 0:01:06.9]} 21... dxe5 {[%clk 0:00:20.1]} 22. fxe5 {[%clk
0:01:07.2]} 22... Na7 {[%clk 0:00:13.7]} 23. Bxa8 {[%clk 0:00:40.6]} 23... Rxa8
{[%clk 0:00:13.7]} 24. Ne4 {[%clk 0:00:41.4]} 24... Qe6 {[%clk 0:00:11.5]} 25.
Nf6+ {[%clk 0:00:38]} 25... Kg7 {[%clk 0:00:07.4]} 26. Nxh7 {[%clk 0:00:37.8]}
26... Kxh7 {[%clk 0:00:08.3]} 27. Rf6 {[%clk 0:00:38.2]} 27... Qe7 {[%clk
0:00:08.8]} 28. Ref1 {[%clk 0:00:33.6]} 28... Rae8 {[%clk 0:00:08.8]} 29. Qd4
{[%clk 0:00:10.1]} 29... Nc8 {[%clk 0:00:07.3]} 30. Qf4 {[%clk 0:00:07.5]} 30...
Kg8 {[%clk 0:00:03.7]} 31. e6 {[%clk 0:00:06.7]} 31... Kh7 {[%clk 0:00:02.2]}
32. Rxf7+ {[%clk 0:00:06.2]} 32... Rxf7 {[%clk 0:00:02.4]} 33. Qxf7+ {[%clk
0:00:06.7]} 33... Qxf7 {[%clk 0:00:02.3]} 34. exf7 {[%clk 0:00:07]} 34... Rf8
{[%clk 0:00:02.9]} 35. Be5 {[%clk 0:00:07.6]} 35... Nd6 {[%clk 0:00:03.6]} 36.
Bxd6 {[%clk 0:00:08.1]} 36... cxd6 {[%clk 0:00:04.5]} 37. Rf6 {[%clk 0:00:08.1]}
37... Kg7 {[%clk 0:00:05.2]} 38. Rxd6 {[%clk 0:00:08.7]} 38... Rxf7 {[%clk
0:00:06.1]} 39. Rxb6 {[%clk 0:00:09.2]} 39... Rf3 {[%clk 0:00:07]} 40. Re6
{[%clk 0:00:09.2]} 40... Kf7 {[%clk 0:00:07.9]} 41. Re5 {[%clk 0:00:09.4]} 41...
g5 {[%clk 0:00:08.8]} 42. Kg2 {[%clk 0:00:09.4]} 42... g4 {[%clk 0:00:09.2]} 43.
Re4 {[%clk 0:00:09.3]} 1-0

[Event "Early-Titled-Tuesday-Blitz-April-23-2024"]
[Site "Chess.com"]
[Date "2024.04.23"]
[Round "5"]
[White "Kazmin_Semyon"]
[Black "Viktoker"]
[Result "1-0"]
[WhiteElo "2565"]
[BlackElo "2366"]
[TimeControl "180+1"]
[EndTime "8:57:51 PDT"]
[Termination "Kazmin_Semyon won by checkmate"]

1. e4 {[%clk 0:02:57.3]} 1... c6 {[%clk 0:02:59.8]} 2. d4 {[%clk 0:02:57.2]}
2... d5 {[%clk 0:03:00.7]} 3. exd5 {[%clk 0:02:57.1]} 3... cxd5 {[%clk
0:03:01.6]} 4. Bd3 {[%clk 0:02:53.1]} 4... Nc6 {[%clk 0:03:00.2]} 5. c3 {[%clk
0:02:53.5]} 5... Qc7 {[%clk 0:03:00.6]} 6. h3 {[%clk 0:02:52.5]} 6... e5 {[%clk
0:02:58.9]} 7. dxe5 {[%clk 0:02:52.9]} 7... Nxe5 {[%clk 0:02:59.8]} 8. Nf3
{[%clk 0:02:48.4]} 8... Nf6 {[%clk 0:02:55.4]} 9. Nxe5 {[%clk 0:02:46.1]} 9...
Qxe5+ {[%clk 0:02:56.3]} 10. Be3 {[%clk 0:02:46.4]} 10... Bd6 {[%clk 0:02:50.1]}
11. Nd2 {[%clk 0:02:45.4]} 11... O-O {[%clk 0:02:48.1]} 12. Nf3 {[%clk
0:02:39.8]} 12... Qe7 {[%clk 0:02:40.8]} 13. O-O {[%clk 0:02:37.2]} 13... h6
{[%clk 0:02:26.6]} 14. Re1 {[%clk 0:02:36.2]} 14... Be6 {[%clk 0:02:25.9]} 15.
Nd4 {[%clk 0:02:31.6]} 15... Bc7 {[%clk 0:02:08.4]} 16. Nf5 {[%clk 0:02:28.4]}
16... Bxf5 {[%clk 0:01:58.6]} 17. Bxf5 {[%clk 0:02:29.3]} 17... Qe5 {[%clk
0:01:57.8]} 18. Qf3 {[%clk 0:02:20.7]} 18... Qh2+ {[%clk 0:01:36.7]} 19. Kf1
{[%clk 0:02:19.9]} 19... Rfe8 {[%clk 0:01:34.2]} 20. g3 {[%clk 0:02:00.5]} 20...
Re5 {[%clk 0:01:23.5]} 21. Ke2 {[%clk 0:01:38.8]} 21... Bb6 {[%clk 0:01:12.9]}
22. Rh1 {[%clk 0:01:22.8]} 22... Rxe3+ {[%clk 0:01:02.7]} 23. Qxe3 {[%clk
0:01:23]} 23... Qxh1 {[%clk 0:00:38.1]} 24. Rxh1 {[%clk 0:01:23.9]} 24... Bxe3
{[%clk 0:00:37.5]} 25. Kxe3 {[%clk 0:01:24.6]} 25... Re8+ {[%clk 0:00:36.6]} 26.
Kf3 {[%clk 0:01:23.7]} 26... Re5 {[%clk 0:00:29.2]} 27. Bc2 {[%clk 0:01:22.3]}
27... Nd7 {[%clk 0:00:27.1]} 28. Rd1 {[%clk 0:01:20.9]} 28... Nb6 {[%clk
0:00:25.8]} 29. b3 {[%clk 0:01:15.3]} 29... Kf8 {[%clk 0:00:24.7]} 30. a4 {[%clk
0:01:11.8]} 30... a5 {[%clk 0:00:23.4]} 31. Rd2 {[%clk 0:01:12.5]} 31... Ke7
{[%clk 0:00:21.4]} 32. Bd3 {[%clk 0:01:04.9]} 32... Ke6 {[%clk 0:00:21.1]} 33.
g4 {[%clk 0:01:01]} 33... Nd7 {[%clk 0:00:20.3]} 34. Bf5+ {[%clk 0:00:55.9]}
34... Ke7 {[%clk 0:00:20.6]} 35. Kg2 {[%clk 0:00:37]} 35... Nc5 {[%clk
0:00:16.8]} 36. f4 {[%clk 0:00:37.6]} 36... Re3 {[%clk 0:00:16.8]} 37. b4 {[%clk
0:00:28.1]} 37... Nb3 {[%clk 0:00:14]} 38. Rxd5 {[%clk 0:00:26.5]} 38... Rxc3
{[%clk 0:00:13.8]} 39. Rd7+ {[%clk 0:00:23.3]} 39... Kf6 {[%clk 0:00:14.2]} 40.
Rxb7 {[%clk 0:00:24.2]} 40... g6 {[%clk 0:00:13.9]} 41. Be4 {[%clk 0:00:16]}
41... Nd2 {[%clk 0:00:09.7]} 42. Bd5 {[%clk 0:00:13.6]} 42... g5 {[%clk
0:00:02]} 43. Rxf7+ {[%clk 0:00:13.7]} 43... Kg6 {[%clk 0:00:02.5]} 44. f5#
{[%clk 0:00:14.6]} 1-0

[Event "Early-Titled-Tuesday-Blitz-April-23-2024"]
[Site "Chess.com"]
[Date "2024.04.23"]
[Round "5"]
[White "Nechitaylo_Nikita"]
[Black "manitodeplomo"]
[Result "1-0"]
[WhiteElo "2351"]
[BlackElo "2625"]
[TimeControl "180+1"]
[EndTime "8:57:52 PDT"]
[Termination "Nechitaylo_Nikita won by resignation"]

1. d4 {[%clk 0:03:00.9]} 1... g6 {[%clk 0:02:58.2]} 2. c4 {[%clk 0:03:01.4]}
2... Bg7 {[%clk 0:02:57.9]} 3. e4 {[%clk 0:03:01.8]} 3... d6 {[%clk 0:02:56.8]}
4. Be3 {[%clk 0:03:02.3]} 4... Nf6 {[%clk 0:02:55.9]} 5. f3 {[%clk 0:03:02.1]}
5... O-O {[%clk 0:02:50.7]} 6. Nc3 {[%clk 0:03:02.7]} 6... c5 {[%clk 0:02:49.8]}
7. dxc5 {[%clk 0:03:03.6]} 7... dxc5 {[%clk 0:02:50.2]} 8. Qxd8 {[%clk
0:03:04.5]} 8... Rxd8 {[%clk 0:02:50.7]} 9. Bxc5 {[%clk 0:03:05.4]} 9... Nc6
{[%clk 0:02:51.3]} 10. Ba3 {[%clk 0:03:04.3]} 10... b6 {[%clk 0:02:50.7]} 11.
Rd1 {[%clk 0:02:58.2]} 11... Bb7 {[%clk 0:02:50.6]} 12. Nd5 {[%clk 0:02:47.2]}
12... e6 {[%clk 0:02:33.1]} 13. Ne7+ {[%clk 0:02:22.6]} 13... Nxe7 {[%clk
0:02:30.7]} 14. Bxe7 {[%clk 0:02:17.8]} 14... Rxd1+ {[%clk 0:02:26.1]} 15. Kxd1
{[%clk 0:02:18.7]} 15... Re8 {[%clk 0:02:24.8]} 16. Bb4 {[%clk 0:02:07.7]} 16...
Rd8+ {[%clk 0:01:57.9]} 17. Kc2 {[%clk 0:02:04.5]} 17... Nd7 {[%clk 0:01:58.3]}
18. Bc3 {[%clk 0:01:54]} 18... Ne5 {[%clk 0:01:56.5]} 19. Nh3 {[%clk 0:01:38.1]}
19... f5 {[%clk 0:01:50.4]} 20. Ng5 {[%clk 0:01:14.4]} 20... Re8 {[%clk
0:01:47.6]} 21. exf5 {[%clk 0:00:24.3]} 21... gxf5 {[%clk 0:01:48.5]} 22. Be2
{[%clk 0:00:23.2]} 22... Bf6 {[%clk 0:01:32.9]} 23. f4 {[%clk 0:00:15.6]} 23...
Nd7 {[%clk 0:01:16.5]} 24. Bh5 {[%clk 0:00:13.4]} 24... Re7 {[%clk 0:01:13]} 25.
Re1 {[%clk 0:00:10.3]} 25... Bxg5 {[%clk 0:01:09]} 26. fxg5 {[%clk 0:00:10.9]}
26... Bxg2 {[%clk 0:01:08.4]} 27. Bf6 {[%clk 0:00:07.8]} 27... Rf7 {[%clk
0:00:52.5]} 28. Rxe6 {[%clk 0:00:05.5]} 28... Nxf6 {[%clk 0:00:23.4]} 29. Bxf7+
{[%clk 0:00:04.6]} 29... Kxf7 {[%clk 0:00:22.1]} 30. Rxf6+ {[%clk 0:00:05.5]}
30... Kg7 {[%clk 0:00:22.8]} 31. Rd6 {[%clk 0:00:04.8]} 31... f4 {[%clk
0:00:19.6]} 32. Kd2 {[%clk 0:00:04.4]} 32... Be4 {[%clk 0:00:13.9]} 33. Rd4
{[%clk 0:00:03.8]} 33... Bf5 {[%clk 0:00:11.7]} 34. Rxf4 {[%clk 0:00:04.1]}
34... Be6 {[%clk 0:00:12.6]} 35. b3 {[%clk 0:00:02.2]} 35... a6 {[%clk
0:00:10.6]} 36. Rf6 {[%clk 0:00:02.9]} 36... Bf7 {[%clk 0:00:09.5]} 37. Rxb6
{[%clk 0:00:03.8]} 37... h6 {[%clk 0:00:09.2]} 38. gxh6+ {[%clk 0:00:03.9]}
38... Kh7 {[%clk 0:00:08.8]} 39. Rxa6 {[%clk 0:00:04.8]} 39... Bg6 {[%clk
0:00:09.2]} 40. Rxg6 {[%clk 0:00:04.9]} 40... Kxg6 {[%clk 0:00:09.1]} 41. a4
{[%clk 0:00:05.8]} 41... Kh7 {[%clk 0:00:09.7]} 42. a5 {[%clk 0:00:06.7]} 42...
Kxh6 {[%clk 0:00:10.5]} 43. a6 {[%clk 0:00:07.6]} 1-0

[Event "Early-Titled-Tuesday-Blitz-April-23-2024"]
[Site "Chess.com"]
[Date "2024.04.23"]
[Round "5"]
[White "Nikolakis2014"]
[Black "Durarbayli"]
[Result "0-1"]
[WhiteElo "2738"]
[BlackElo "2939"]
[TimeControl "180+1"]
[EndTime "8:57:54 PDT"]
[Termination "Durarbayli won on time"]

1. Nf3 {[%clk 0:03:00.9]} 1... c5 {[%clk 0:02:58.2]} 2. c4 {[%clk 0:03:00.8]}
2... Nf6 {[%clk 0:02:58.3]} 3. Nc3 {[%clk 0:03:00.7]} 3... e6 {[%clk 0:02:58.8]}
4. e3 {[%clk 0:03:00.2]} 4... Nc6 {[%clk 0:02:58.8]} 5. d4 {[%clk 0:02:59.2]}
5... d5 {[%clk 0:02:59.4]} 6. cxd5 {[%clk 0:02:57.2]} 6... exd5 {[%clk
0:02:59.4]} 7. Bb5 {[%clk 0:02:55.7]} 7... cxd4 {[%clk 0:02:59.7]} 8. Nxd4
{[%clk 0:02:55.1]} 8... Bd7 {[%clk 0:03:00.3]} 9. O-O {[%clk 0:02:54.5]} 9...
Bd6 {[%clk 0:03:00.3]} 10. e4 {[%clk 0:02:52.5]} 10... dxe4 {[%clk 0:02:42.4]}
11. Nxc6 {[%clk 0:02:40.7]} 11... Bxc6 {[%clk 0:02:42.3]} 12. Bxc6+ {[%clk
0:02:40.6]} 12... bxc6 {[%clk 0:02:43.2]} 13. Qa4 {[%clk 0:02:40.5]} 13... Qc7
{[%clk 0:02:21.8]} 14. Nxe4 {[%clk 0:02:28.6]} 14... Bxh2+ {[%clk 0:02:16.3]}
15. Kh1 {[%clk 0:02:28.5]} 15... Be5 {[%clk 0:02:06.4]} 16. Nxf6+ {[%clk
0:02:20.8]} 16... Bxf6 {[%clk 0:01:59.1]} 17. Re1+ {[%clk 0:02:16]} 17... Kf8
{[%clk 0:01:57.9]} 18. Bf4 {[%clk 0:02:10.6]} 18... Qb7 {[%clk 0:01:52.6]} 19.
Rac1 {[%clk 0:02:01.1]} 19... g5 {[%clk 0:01:50.5]} 20. Rxc6 {[%clk 0:01:30.7]}
20... Qxb2 {[%clk 0:01:46.4]} 21. Bg3 {[%clk 0:01:17.2]} 21... h5 {[%clk
0:01:17.5]} 22. Rc7 {[%clk 0:00:35.9]} 22... Kg7 {[%clk 0:00:59.3]} 23. Qc4
{[%clk 0:00:30.9]} 23... Raf8 {[%clk 0:00:45.4]} 24. Kg1 {[%clk 0:00:19.8]}
24... Qd4 {[%clk 0:00:22.4]} 25. Qc6 {[%clk 0:00:17.5]} 25... h4 {[%clk
0:00:15.6]} 26. Bd6 {[%clk 0:00:17.3]} 26... Rd8 {[%clk 0:00:16.2]} 27. Bc5
{[%clk 0:00:14.9]} 27... Qd5 {[%clk 0:00:15.3]} 28. Qxd5 {[%clk 0:00:09.9]}
28... Rxd5 {[%clk 0:00:16.2]} 29. Bxa7 {[%clk 0:00:10.2]} 29... Ra5 {[%clk
0:00:12.2]} 30. Re2 {[%clk 0:00:08.9]} 30... Ra8 {[%clk 0:00:12.2]} 31. Bc5
{[%clk 0:00:06.7]} 31... Rxa2 {[%clk 0:00:11.5]} 32. Rxa2 {[%clk 0:00:06.7]}
32... Rxa2 {[%clk 0:00:12.4]} 33. f3 {[%clk 0:00:07]} 33... Ra1+ {[%clk
0:00:11.1]} 34. Kf2 {[%clk 0:00:06.4]} 34... Be5 {[%clk 0:00:11.6]} 35. Rc6
{[%clk 0:00:05.7]} 35... Ra2+ {[%clk 0:00:10.6]} 36. Kf1 {[%clk 0:00:05.6]}
36... f6 {[%clk 0:00:10.6]} 37. Bd6 {[%clk 0:00:04.8]} 37... Bd4 {[%clk
0:00:10.3]} 38. Rc7+ {[%clk 0:00:04.5]} 38... Kg6 {[%clk 0:00:10.1]} 39. Be7
{[%clk 0:00:04]} 39... Rf2+ {[%clk 0:00:09.7]} 40. Ke1 {[%clk 0:00:03.9]} 40...
Rxg2 {[%clk 0:00:10]} 41. Rc4 {[%clk 0:00:04.2]} 41... Be5 {[%clk 0:00:10.3]}
42. Rc5 {[%clk 0:00:04.1]} 42... Ra2 {[%clk 0:00:10.5]} 43. Kf1 {[%clk
0:00:04.1]} 43... h3 {[%clk 0:00:10.8]} 44. Kg1 {[%clk 0:00:03.8]} 44... Bd4+
{[%clk 0:00:11.4]} 0-1

[Event "Early-Titled-Tuesday-Blitz-April-23-2024"]
[Site "Chess.com"]
[Date "2024.04.23"]
[Round "5"]
[White "HansOnTwitch"]
[Black "Zohid6"]
[Result "1-0"]
[WhiteElo "3239"]
[BlackElo "2952"]
[TimeControl "180+1"]
[EndTime "8:57:56 PDT"]
[Termination "HansOnTwitch won on time"]

1. e4 {[%clk 0:02:59.2]} 1... e5 {[%clk 0:03:00.3]} 2. Nf3 {[%clk 0:02:58.6]}
2... Nf6 {[%clk 0:03:00.5]} 3. Nxe5 {[%clk 0:02:55.3]} 3... d6 {[%clk
0:02:59.7]} 4. Nc4 {[%clk 0:02:54.6]} 4... Nxe4 {[%clk 0:02:59.7]} 5. Qe2 {[%clk
0:02:55.2]} 5... Qe7 {[%clk 0:02:58.7]} 6. Nc3 {[%clk 0:02:54.6]} 6... Nxc3
{[%clk 0:02:55.6]} 7. bxc3 {[%clk 0:02:54.4]} 7... Nd7 {[%clk 0:02:51.3]} 8. d4
{[%clk 0:02:49.5]} 8... Nb6 {[%clk 0:02:50.4]} 9. Na5 {[%clk 0:02:48.2]} 9... c6
{[%clk 0:02:43]} 10. Qxe7+ {[%clk 0:02:40.7]} 10... Bxe7 {[%clk 0:02:41.2]} 11.
a4 {[%clk 0:02:41.4]} 11... d5 {[%clk 0:02:38.1]} 12. Bf4 {[%clk 0:02:39.9]}
12... O-O {[%clk 0:02:28.4]} 13. Bd3 {[%clk 0:02:39.6]} 13... Nd7 {[%clk
0:02:01.9]} 14. Kd2 {[%clk 0:02:36.7]} 14... Bd8 {[%clk 0:01:55.6]} 15. Nb3
{[%clk 0:02:34.6]} 15... Nf6 {[%clk 0:01:55.6]} 16. Rhe1 {[%clk 0:02:32.4]}
16... b6 {[%clk 0:01:54.1]} 17. a5 {[%clk 0:02:30.9]} 17... b5 {[%clk
0:01:52.1]} 18. a6 {[%clk 0:02:21.3]} 18... Bg4 {[%clk 0:01:31.2]} 19. Nc5
{[%clk 0:02:11.5]} 19... Bb6 {[%clk 0:01:30.5]} 20. Re7 {[%clk 0:02:03.5]} 20...
Rfe8 {[%clk 0:01:26.2]} 21. Rb7 {[%clk 0:01:42.4]} 21... Bc8 {[%clk 0:01:20.5]}
22. Re1 {[%clk 0:01:33.4]} 22... Rxe1 {[%clk 0:00:55.4]} 23. Kxe1 {[%clk
0:01:34.3]} 23... h6 {[%clk 0:00:24.1]} 24. Kd2 {[%clk 0:01:28.9]} 24... g5
{[%clk 0:00:19.1]} 25. Bc7 {[%clk 0:01:24.4]} 25... Bxc5 {[%clk 0:00:14.5]} 26.
dxc5 {[%clk 0:01:23.7]} 26... Nd7 {[%clk 0:00:14.2]} 27. Bf5 {[%clk 0:01:05.2]}
27... Nxc5 {[%clk 0:00:12.6]} 28. Bxc8 {[%clk 0:01:05.5]} 28... Rxc8 {[%clk
0:00:12]} 29. Rxa7 {[%clk 0:01:06]} 29... Nxa6 {[%clk 0:00:10]} 30. Bd6 {[%clk
0:01:05]} 30... Rd8 {[%clk 0:00:05.3]} 31. Be7 {[%clk 0:00:57]} 31... Re8 {[%clk
0:00:04.7]} 32. Ba3 {[%clk 0:00:56.9]} 32... Nb8 {[%clk 0:00:03.5]} 33. Bd6
{[%clk 0:00:56.9]} 33... Rd8 {[%clk 0:00:02.3]} 34. Bc7 {[%clk 0:00:54.1]} 34...
Rf8 {[%clk 0:00:01.3]} 35. Bb6 {[%clk 0:00:45.4]} 35... Re8 {[%clk 0:00:01.2]}
36. g4 {[%clk 0:00:41.9]} 36... Kf8 {[%clk 0:00:01.3]} 37. Bc5+ {[%clk
0:00:41.5]} 37... Kg7 {[%clk 0:00:01.8]} 38. Rb7 {[%clk 0:00:38.1]} 38... Rd8
{[%clk 0:00:01.9]} 39. Bb6 {[%clk 0:00:33.1]} 39... Rc8 {[%clk 0:00:02]} 40. Bc5
{[%clk 0:00:28.2]} 40... Na6 {[%clk 0:00:02.1]} 41. Bd4+ {[%clk 0:00:28.1]}
41... Kg6 {[%clk 0:00:01.7]} 42. Rb6 {[%clk 0:00:28.7]} 42... Nb8 {[%clk
0:00:02.2]} 43. Rb7 {[%clk 0:00:28.2]} 43... Na6 {[%clk 0:00:02.8]} 44. Bb6
{[%clk 0:00:28.3]} 44... Ra8 {[%clk 0:00:01.7]} 45. Rd7 {[%clk 0:00:27.8]} 45...
Nb8 {[%clk 0:00:01.5]} 46. Rd6+ {[%clk 0:00:28.2]} 46... Kh7 {[%clk 0:00:01.8]}
47. Rd8 {[%clk 0:00:27.2]} 47... Kg6 {[%clk 0:00:01.2]} 48. Bd4 {[%clk
0:00:24.2]} 48... c5 {[%clk 0:00:01.1]} 49. Bxc5 {[%clk 0:00:24.2]} 1-0